[Event "*** Titled Tuesday Blitz"]
[Site "Chess.com"]
[Date "2020.11.24"]
[Round "4"]
[White "Gerodot71"]
[Black "inegrepus"]
[Result "1-0"]
[WhiteElo "2472"]
[BlackElo "2221"]
[TimeControl "180+1"]
[EndTime "10:55:52 PST"]
[Termination "Gerodot71 won on time"]

1. d4 {[%clk 0:03:00.9]} 1... Nf6 {[%clk 0:02:58.9]} 2. c4 {[%clk 0:03:01.5]}
2... c5 {[%clk 0:02:58.6]} 3. d5 {[%clk 0:03:01.6]} 3... b5 {[%clk 0:02:59]} 4.
cxb5 {[%clk 0:03:02.2]} 4... a6 {[%clk 0:02:59]} 5. e3 {[%clk 0:03:02.1]} 5...
axb5 {[%clk 0:02:57.3]} 6. Bxb5 {[%clk 0:03:02.6]} 6... g6 {[%clk 0:02:56]} 7.
Nc3 {[%clk 0:03:01.4]} 7... Bg7 {[%clk 0:02:55.5]} 8. Nf3 {[%clk 0:02:57.4]}
8... O-O {[%clk 0:02:51.8]} 9. O-O {[%clk 0:02:55.5]} 9... d6 {[%clk 0:02:51.1]}
10. e4 {[%clk 0:02:50.3]} 10... Ba6 {[%clk 0:02:51]} 11. Qe2 {[%clk 0:02:34.2]}
11... Bxb5 {[%clk 0:02:47.4]} 12. Nxb5 {[%clk 0:02:35.1]} 12... Na6 {[%clk
0:02:44.2]} 13. Nc3 {[%clk 0:02:34.4]} 13... Qb6 {[%clk 0:02:33.6]} 14. h3
{[%clk 0:02:26.8]} 14... Rfb8 {[%clk 0:02:33]} 15. e5 {[%clk 0:02:15.7]} 15...
dxe5 {[%clk 0:02:24.6]} 16. Nxe5 {[%clk 0:02:16.6]} 16... Nb4 {[%clk 0:02:23.3]}
17. Rd1 {[%clk 0:02:13.5]} 17... Qa6 {[%clk 0:02:16.9]} 18. Nc4 {[%clk
0:01:50.3]} 18... Rd8 {[%clk 0:01:54.5]} 19. a3 {[%clk 0:01:03.3]} 19... Nbxd5
{[%clk 0:01:51]} 20. Bd2 {[%clk 0:00:58]} 20... Qb7 {[%clk 0:01:29.2]} 21. Rab1
{[%clk 0:00:53.2]} 21... e6 {[%clk 0:01:12.2]} 22. Bg5 {[%clk 0:00:37.3]} 22...
Qb3 {[%clk 0:01:06.6]} 23. Ne4 {[%clk 0:00:29.8]} 23... Rdc8 {[%clk 0:00:43.9]}
24. Ned6 {[%clk 0:00:29.1]} 24... Rcb8 {[%clk 0:00:36.2]} 25. Rd3 {[%clk
0:00:28.2]} 25... Qa4 {[%clk 0:00:32.7]} 26. Re1 {[%clk 0:00:25.5]} 26... h6
{[%clk 0:00:23.3]} 27. Bc1 {[%clk 0:00:22.4]} 27... Qd7 {[%clk 0:00:10.9]} 28.
Ne4 {[%clk 0:00:19.7]} 28... Qc7 {[%clk 0:00:10.4]} 29. Nxf6+ {[%clk 0:00:16.3]}
29... Nxf6 {[%clk 0:00:10.6]} 30. Rf3 {[%clk 0:00:16.4]} 30... Rf8 {[%clk
0:00:09.2]} 31. Bf4 {[%clk 0:00:16.3]} 31... Qc6 {[%clk 0:00:08.4]} 32. Ne5
{[%clk 0:00:16.1]} 32... Qb7 {[%clk 0:00:08.2]} 33. Bxh6 {[%clk 0:00:14.1]}
33... Nd5 {[%clk 0:00:05.5]} 34. Bxg7 {[%clk 0:00:13.2]} 34... Kxg7 {[%clk
0:00:06.3]} 35. Ng4 {[%clk 0:00:12.6]} 35... Rab8 {[%clk 0:00:05.4]} 36. Qe5+
{[%clk 0:00:12.4]} 36... Kh7 {[%clk 0:00:03.2]} 37. Nf6+ {[%clk 0:00:09.6]}
37... Nxf6 {[%clk 0:00:02.9]} 38. Qxf6 {[%clk 0:00:10.5]} 38... Qxb2 {[%clk
0:00:03.6]} 39. Re5 {[%clk 0:00:11]} 39... Qb1+ {[%clk 0:00:02.8]} 40. Kh2
{[%clk 0:00:10.7]} 40... Rbd8 {[%clk 0:00:03.5]} 41. Rf4 {[%clk 0:00:10.4]}
41... Rd1 {[%clk 0:00:03.2]} 42. Rh4+ {[%clk 0:00:10.3]} 1-0

[Event "*** Titled Tuesday Blitz"]
[Site "Chess.com"]
[Date "2020.11.24"]
[Round "4"]
[White "sorrm8thatscheckm8"]
[Black "VladimirBugayev"]
[Result "1-0"]
[WhiteElo "2495"]
[BlackElo "2313"]
[TimeControl "180+1"]
[EndTime "10:55:52 PST"]
[Termination "sorrm8thatscheckm8 won on time"]

1. d4 {[%clk 0:03:00.9]} 1... Nf6 {[%clk 0:02:59.3]} 2. c4 {[%clk 0:03:00.9]}
2... c5 {[%clk 0:02:58.4]} 3. d5 {[%clk 0:03:00]} 3... b5 {[%clk 0:02:58.9]} 4.
cxb5 {[%clk 0:02:57.8]} 4... a6 {[%clk 0:02:58.6]} 5. bxa6 {[%clk 0:02:58.6]}
5... Bxa6 {[%clk 0:02:59.2]} 6. Nc3 {[%clk 0:02:59]} 6... d6 {[%clk 0:02:59.3]}
7. e4 {[%clk 0:02:59.4]} 7... Bxf1 {[%clk 0:02:59.9]} 8. Kxf1 {[%clk 0:03:00.3]}
8... g6 {[%clk 0:03:00.3]} 9. g3 {[%clk 0:03:01.2]} 9... Bg7 {[%clk 0:03:00.7]}
10. Kg2 {[%clk 0:03:02.1]} 10... O-O {[%clk 0:03:00.6]} 11. Nf3 {[%clk 0:03:03]}
11... Qb6 {[%clk 0:02:56.8]} 12. a4 {[%clk 0:03:01.8]} 12... Na6 {[%clk
0:02:55]} 13. Qe2 {[%clk 0:02:53.8]} 13... Nd7 {[%clk 0:02:48.9]} 14. Nd2 {[%clk
0:02:53.2]} 14... Qb4 {[%clk 0:02:23.1]} 15. a5 {[%clk 0:02:44.1]} 15... Nc7
{[%clk 0:02:04.8]} 16. Ra4 {[%clk 0:02:42.8]} 16... Qb7 {[%clk 0:02:04.7]} 17.
Nc4 {[%clk 0:02:37.7]} 17... e6 {[%clk 0:02:04.5]} 18. Nxd6 {[%clk 0:02:35.9]}
18... Qb8 {[%clk 0:01:59.7]} 19. dxe6 {[%clk 0:02:30.3]} 19... Nxe6 {[%clk
0:01:59]} 20. Nc4 {[%clk 0:02:20]} 20... Nd4 {[%clk 0:01:57.6]} 21. Qd3 {[%clk
0:02:12.2]} 21... f5 {[%clk 0:01:52.7]} 22. Bf4 {[%clk 0:02:07.2]} 22... Qb3
{[%clk 0:01:36]} 23. Ra3 {[%clk 0:01:56]} 23... Qb7 {[%clk 0:01:33.6]} 24. Nd6
{[%clk 0:01:48]} 24... Qxb2 {[%clk 0:01:32.7]} 25. Ra2 {[%clk 0:01:36.9]} 25...
fxe4 {[%clk 0:01:29.9]} 26. Ndxe4 {[%clk 0:01:30.1]} 26... Qb7 {[%clk
0:01:26.4]} 27. Rb1 {[%clk 0:01:29.9]} 27... Qc6 {[%clk 0:01:25.1]} 28. f3
{[%clk 0:01:20.9]} 28... c4 {[%clk 0:01:10.4]} 29. Qd1 {[%clk 0:01:06.7]} 29...
h6 {[%clk 0:00:54.4]} 30. Rd2 {[%clk 0:01:06.1]} 30... g5 {[%clk 0:00:52.9]} 31.
Rxd4 {[%clk 0:01:03.5]} 31... Bxd4 {[%clk 0:00:52.1]} 32. Qxd4 {[%clk
0:01:01.3]} 32... gxf4 {[%clk 0:00:52.7]} 33. Nd5 {[%clk 0:00:54.3]} 33... Qe6
{[%clk 0:00:41.2]} 34. Nxf4 {[%clk 0:00:49.3]} 34... Rxf4 {[%clk 0:00:36.4]} 35.
gxf4 {[%clk 0:00:49.3]} 35... Rxa5 {[%clk 0:00:36.5]} 36. Kh1 {[%clk 0:00:44.5]}
36... Qf7 {[%clk 0:00:15.4]} 37. Qxd7 {[%clk 0:00:34.6]} 37... Qxd7 {[%clk
0:00:12.5]} 38. Nf6+ {[%clk 0:00:34.7]} 38... Kf7 {[%clk 0:00:11.7]} 39. Nxd7
{[%clk 0:00:35.6]} 39... Ke6 {[%clk 0:00:11.5]} 40. Ne5 {[%clk 0:00:32.7]} 40...
Kf5 {[%clk 0:00:11.1]} 41. Nxc4 {[%clk 0:00:28.6]} 41... Ra2 {[%clk 0:00:11]}
42. Rb2 {[%clk 0:00:19.5]} 42... Ra1+ {[%clk 0:00:09.7]} 43. Kg2 {[%clk
0:00:19.7]} 43... Kxf4 {[%clk 0:00:10.4]} 44. Nd2 {[%clk 0:00:19.3]} 44... Ra7
{[%clk 0:00:07.7]} 45. Rb4+ {[%clk 0:00:19.1]} 45... Ke3 {[%clk 0:00:06.9]} 46.
Nf1+ {[%clk 0:00:19.3]} 46... Ke2 {[%clk 0:00:04.5]} 47. Re4+ {[%clk 0:00:19.4]}
47... Kd3 {[%clk 0:00:04.5]} 48. Re6 {[%clk 0:00:19.4]} 48... Rg7+ {[%clk
0:00:04.3]} 49. Ng3 {[%clk 0:00:19.8]} 49... h5 {[%clk 0:00:03.5]} 50. h4 {[%clk
0:00:20.1]} 1-0

[Event "*** Titled Tuesday Blitz"]
[Site "Chess.com"]
[Date "2020.11.24"]
[Round "4"]
[White "shaheus"]
[Black "Kopytkin"]
[Result "0-1"]
[WhiteElo "2214"]
[BlackElo "2436"]
[TimeControl "180+1"]
[EndTime "10:55:55 PST"]
[Termination "Kopytkin won on time"]

1. e4 {[%clk 0:02:59.3]} 1... Nf6 {[%clk 0:02:59.3]} 2. Nc3 {[%clk 0:02:58.3]}
2... d5 {[%clk 0:02:58.4]} 3. e5 {[%clk 0:02:58.2]} 3... Ne4 {[%clk 0:02:57.3]}
4. Nf3 {[%clk 0:02:45.5]} 4... Bg4 {[%clk 0:02:47.4]} 5. Be2 {[%clk 0:02:45.4]}
5... e6 {[%clk 0:02:46.4]} 6. h3 {[%clk 0:02:44.7]} 6... Bh5 {[%clk 0:02:46]} 7.
O-O {[%clk 0:02:33.8]} 7... Be7 {[%clk 0:02:45.9]} 8. d4 {[%clk 0:02:30.5]} 8...
Nxc3 {[%clk 0:02:45.6]} 9. bxc3 {[%clk 0:02:30.2]} 9... c5 {[%clk 0:02:44.2]}
10. Be3 {[%clk 0:02:21.5]} 10... Nc6 {[%clk 0:02:43.2]} 11. Qd2 {[%clk
0:02:03.4]} 11... O-O {[%clk 0:02:33.3]} 12. Rfd1 {[%clk 0:02:01.1]} 12... Qa5
{[%clk 0:02:30.3]} 13. Rab1 {[%clk 0:01:52.7]} 13... Rab8 {[%clk 0:02:17.4]} 14.
Rb5 {[%clk 0:01:43.2]} 14... Qc7 {[%clk 0:02:07.7]} 15. Rdb1 {[%clk 0:01:35.7]}
15... c4 {[%clk 0:02:06.2]} 16. a4 {[%clk 0:01:30.2]} 16... b6 {[%clk 0:02:06]}
17. Bg5 {[%clk 0:01:25.2]} 17... Rb7 {[%clk 0:02:03.9]} 18. Bxe7 {[%clk
0:01:22]} 18... Qxe7 {[%clk 0:02:03.9]} 19. Nh2 {[%clk 0:00:52.4]} 19... Bg6
{[%clk 0:02:02.7]} 20. Ng4 {[%clk 0:00:50.1]} 20... Rfb8 {[%clk 0:01:59.5]} 21.
Ne3 {[%clk 0:00:46.4]} 21... a6 {[%clk 0:01:57.4]} 22. R5b2 {[%clk 0:00:43.1]}
22... b5 {[%clk 0:01:57]} 23. axb5 {[%clk 0:00:40.5]} 23... Rxb5 {[%clk
0:01:57.1]} 24. Rxb5 {[%clk 0:00:40.3]} 24... Rxb5 {[%clk 0:01:53.2]} 25. Rxb5
{[%clk 0:00:38.1]} 25... axb5 {[%clk 0:01:53.5]} 26. f4 {[%clk 0:00:38.4]} 26...
Be4 {[%clk 0:01:52.2]} 27. Kf2 {[%clk 0:00:33.8]} 27... Qa3 {[%clk 0:01:51.5]}
28. Bf3 {[%clk 0:00:32.8]} 28... Bxf3 {[%clk 0:01:51.4]} 29. Kxf3 {[%clk
0:00:32.7]} 29... Qa5 {[%clk 0:01:45.6]} 30. Ke2 {[%clk 0:00:29.5]} 30... Qa1
{[%clk 0:01:39.7]} 31. f5 {[%clk 0:00:21.4]} 31... b4 {[%clk 0:01:30]} 32. fxe6
{[%clk 0:00:19.4]} 32... fxe6 {[%clk 0:01:28.7]} 33. cxb4 {[%clk 0:00:16.3]}
33... Nxd4+ {[%clk 0:01:22.2]} 34. Kf2 {[%clk 0:00:15.9]} 34... Nb5 {[%clk
0:01:22.1]} 35. Nxd5 {[%clk 0:00:13.1]} 35... Qxe5 {[%clk 0:01:13.8]} 36. Ne3
{[%clk 0:00:10.4]} 36... Qf4+ {[%clk 0:01:02]} 37. Kg1 {[%clk 0:00:10.2]} 37...
Qd4 {[%clk 0:00:59.4]} 38. Qf2 {[%clk 0:00:08.1]} 38... Nd6 {[%clk 0:00:52.1]}
39. Qf3 {[%clk 0:00:05.1]} 39... c3 {[%clk 0:00:39.8]} 40. Qa8+ {[%clk
0:00:02.9]} 40... Kf7 {[%clk 0:00:39.5]} 41. Qf3+ {[%clk 0:00:02.2]} 41... Ke7
{[%clk 0:00:37.6]} 42. Kh2 {[%clk 0:00:02.6]} 42... Qxb4 {[%clk 0:00:31.1]} 43.
Ng4 {[%clk 0:00:02.2]} 43... Qe4 {[%clk 0:00:28.3]} 44. Qg3 {[%clk 0:00:01.4]}
44... g5 {[%clk 0:00:18.8]} 45. Qxc3 {[%clk 0:00:01.2]} 45... Qf4+ {[%clk
0:00:13.6]} 46. Kg1 {[%clk 0:00:01.5]} 46... Nf5 {[%clk 0:00:10.6]} 47. Qc7+
{[%clk 0:00:01.1]} 47... Qxc7 {[%clk 0:00:09.9]} 0-1

[Event "*** Titled Tuesday Blitz"]
[Site "Chess.com"]
[Date "2020.11.24"]
[Round "4"]
[White "gumimis"]
[Black "SanchezKelvin"]
[Result "0-1"]
[WhiteElo "2282"]
[BlackElo "2466"]
[TimeControl "180+1"]
[EndTime "10:55:56 PST"]
[Termination "SanchezKelvin won on time"]

1. e4 {[%clk 0:02:59.4]} 1... c5 {[%clk 0:02:59.1]} 2. Nf3 {[%clk 0:02:59.7]}
2... d6 {[%clk 0:02:59.1]} 3. d4 {[%clk 0:03:00.2]} 3... cxd4 {[%clk 0:03:00]}
4. Nxd4 {[%clk 0:02:58.7]} 4... Nf6 {[%clk 0:02:59]} 5. Nc3 {[%clk 0:02:58.5]}
5... g6 {[%clk 0:02:55.1]} 6. Be3 {[%clk 0:02:57.2]} 6... Bg7 {[%clk 0:02:54.8]}
7. f3 {[%clk 0:02:57.7]} 7... O-O {[%clk 0:02:53.5]} 8. Qd2 {[%clk 0:02:57.9]}
8... Nc6 {[%clk 0:02:52.5]} 9. g4 {[%clk 0:02:57.4]} 9... Nxd4 {[%clk
0:02:51.3]} 10. Bxd4 {[%clk 0:02:57.9]} 10... Be6 {[%clk 0:02:51.7]} 11. h4
{[%clk 0:02:52.7]} 11... Qa5 {[%clk 0:02:49.9]} 12. h5 {[%clk 0:02:49.6]} 12...
Rfc8 {[%clk 0:02:46.2]} 13. a3 {[%clk 0:02:44.6]} 13... Rab8 {[%clk 0:02:43.3]}
14. h6 {[%clk 0:02:40.2]} 14... Bh8 {[%clk 0:02:37.2]} 15. g5 {[%clk 0:02:39]}
15... Nd7 {[%clk 0:02:36.1]} 16. Bxh8 {[%clk 0:02:33.8]} 16... Kxh8 {[%clk
0:02:35.4]} 17. f4 {[%clk 0:02:31.5]} 17... Qc5 {[%clk 0:02:17.6]} 18. Bd3
{[%clk 0:02:20.4]} 18... b5 {[%clk 0:02:11.5]} 19. Rf1 {[%clk 0:02:15.6]} 19...
Bh3 {[%clk 0:01:27.5]} 20. Rf3 {[%clk 0:02:04.7]} 20... Qg1+ {[%clk 0:01:21.5]}
21. Bf1 {[%clk 0:02:04.7]} 21... Bxf1 {[%clk 0:01:17.5]} 22. O-O-O {[%clk
0:01:59.5]} 22... Qc5 {[%clk 0:00:57.4]} 23. Rfxf1 {[%clk 0:01:53.5]} 23... b4
{[%clk 0:00:57.3]} 24. axb4 {[%clk 0:01:48.1]} 24... Rxb4 {[%clk 0:00:50.8]} 25.
f5 {[%clk 0:01:27.4]} 25... Ne5 {[%clk 0:00:49.1]} 26. fxg6 {[%clk 0:01:26.8]}
26... hxg6 {[%clk 0:00:45.4]} 27. Qd5 {[%clk 0:00:58.3]} 27... Qe3+ {[%clk
0:00:30]} 28. Rd2 {[%clk 0:00:48.8]} 28... Qxg5 {[%clk 0:00:21.3]} 29. Rxf7
{[%clk 0:00:34]} 29... Nxf7 {[%clk 0:00:20.5]} 30. Qxf7 {[%clk 0:00:34.9]} 30...
Qf6 {[%clk 0:00:20.7]} 31. Qxf6+ {[%clk 0:00:25.2]} 31... exf6 {[%clk 0:00:20]}
32. Rxd6 {[%clk 0:00:25.7]} 32... Rf8 {[%clk 0:00:19.9]} 33. Rd7 {[%clk
0:00:19.9]} 33... f5 {[%clk 0:00:19.8]} 34. exf5 {[%clk 0:00:13.2]} 34... gxf5
{[%clk 0:00:19.4]} 35. Nd5 {[%clk 0:00:10.9]} 35... Rd4 {[%clk 0:00:18.4]} 36.
c3 {[%clk 0:00:11.1]} 36... Rh4 {[%clk 0:00:17.3]} 37. Rd6 {[%clk 0:00:06]}
37... f4 {[%clk 0:00:16.9]} 38. Ne7 {[%clk 0:00:05.8]} 38... Kh7 {[%clk
0:00:15.8]} 39. Rd7 {[%clk 0:00:05.7]} 39... Rf7 {[%clk 0:00:15.8]} 40. Rxa7
{[%clk 0:00:03.8]} 40... Rxh6 {[%clk 0:00:15.1]} 41. Kd2 {[%clk 0:00:02.6]}
41... Re6 {[%clk 0:00:14.6]} 42. Nc6 {[%clk 0:00:01.4]} 42... Rxa7 {[%clk
0:00:13.6]} 43. Nxa7 {[%clk 0:00:02.3]} 43... f3 {[%clk 0:00:13.9]} 44. Nb5
{[%clk 0:00:02.6]} 44... f2 {[%clk 0:00:14.1]} 45. Nd4 {[%clk 0:00:03.3]} 45...
Re4 {[%clk 0:00:13.6]} 46. Ne6 {[%clk 0:00:04.2]} 46... Rxe6 {[%clk 0:00:13.4]}
0-1

[Event "*** Titled Tuesday Blitz"]
[Site "Chess.com"]
[Date "2020.11.24"]
[Round "4"]
[White "ama18"]
[Black "Hercog"]
[Result "1-0"]
[WhiteElo "2457"]
[BlackElo "2278"]
[TimeControl "180+1"]
[EndTime "10:55:56 PST"]
[Termination "ama18 won on time"]

1. e4 {[%clk 0:02:59]} 1... c6 {[%clk 0:02:59.6]} 2. d4 {[%clk 0:02:46]} 2... d5
{[%clk 0:02:59.4]} 3. e5 {[%clk 0:02:46]} 3... Bf5 {[%clk 0:02:59.2]} 4. Nc3
{[%clk 0:02:34.9]} 4... e6 {[%clk 0:02:59.2]} 5. g4 {[%clk 0:02:32.9]} 5... Bg6
{[%clk 0:02:59.2]} 6. Nge2 {[%clk 0:02:32.9]} 6... c5 {[%clk 0:02:53.6]} 7. h4
{[%clk 0:02:32.2]} 7... h5 {[%clk 0:02:53.7]} 8. Nf4 {[%clk 0:02:31.3]} 8... Bh7
{[%clk 0:02:53.9]} 9. g5 {[%clk 0:02:31.2]} 9... Bf5 {[%clk 0:02:44.4]} 10. Nxh5
{[%clk 0:02:10.9]} 10... cxd4 {[%clk 0:02:41.5]} 11. Nb5 {[%clk 0:02:05.2]}
11... Nc6 {[%clk 0:02:40]} 12. Ng3 {[%clk 0:01:55.8]} 12... Bh7 {[%clk
0:01:53.3]} 13. Nxd4 {[%clk 0:01:41.4]} 13... Nge7 {[%clk 0:01:47.4]} 14. f4
{[%clk 0:01:33.9]} 14... Qb6 {[%clk 0:01:42.7]} 15. c3 {[%clk 0:01:23.1]} 15...
Nxd4 {[%clk 0:01:34.5]} 16. Qxd4 {[%clk 0:01:24]} 16... Qxd4 {[%clk 0:01:16.7]}
17. cxd4 {[%clk 0:01:24.9]} 17... Nc6 {[%clk 0:01:16.3]} 18. Be3 {[%clk
0:01:24.8]} 18... Bb4+ {[%clk 0:01:11.8]} 19. Kf2 {[%clk 0:01:24.6]} 19... Rc8
{[%clk 0:01:07.8]} 20. Bb5 {[%clk 0:01:24.1]} 20... Ke7 {[%clk 0:01:06.5]} 21.
a3 {[%clk 0:01:23]} 21... Ba5 {[%clk 0:01:06.3]} 22. Rac1 {[%clk 0:01:22.4]}
22... Bb6 {[%clk 0:01:03.7]} 23. Bxc6 {[%clk 0:01:18.7]} 23... Rxc6 {[%clk
0:01:03.2]} 24. Rxc6 {[%clk 0:01:18.2]} 24... bxc6 {[%clk 0:01:03.4]} 25. Rc1
{[%clk 0:01:18.8]} 25... Kd7 {[%clk 0:01:02.7]} 26. h5 {[%clk 0:01:16.4]} 26...
Bd3 {[%clk 0:00:58.4]} 27. Rc3 {[%clk 0:01:09.6]} 27... Bb1 {[%clk 0:00:57]} 28.
Rc1 {[%clk 0:01:08.6]} 28... Bd3 {[%clk 0:00:56.9]} 29. Rd1 {[%clk 0:01:08.9]}
29... Bc2 {[%clk 0:00:55.2]} 30. Rh1 {[%clk 0:01:07.9]} 30... Bd8 {[%clk
0:00:45.6]} 31. Ke1 {[%clk 0:01:02.8]} 31... Be7 {[%clk 0:00:43.1]} 32. Kd2
{[%clk 0:01:02.4]} 32... Bh7 {[%clk 0:00:41.2]} 33. g6 {[%clk 0:00:39]} 33...
Bg8 {[%clk 0:00:41]} 34. Bg1 {[%clk 0:00:28.8]} 34... f6 {[%clk 0:00:14.9]} 35.
f5 {[%clk 0:00:21.4]} 35... exf5 {[%clk 0:00:12]} 36. Nxf5 {[%clk 0:00:20.8]}
36... fxe5 {[%clk 0:00:08.3]} 37. dxe5 {[%clk 0:00:19.7]} 37... Bg5+ {[%clk
0:00:05.9]} 38. Be3 {[%clk 0:00:19.8]} 38... Bxe3+ {[%clk 0:00:04.4]} 39. Kxe3
{[%clk 0:00:20.4]} 39... Be6 {[%clk 0:00:02.4]} 40. Nxg7 {[%clk 0:00:19.5]}
40... c5 {[%clk 0:00:01.9]} 41. h6 {[%clk 0:00:17.4]} 41... d4+ {[%clk
0:00:01.6]} 42. Ke4 {[%clk 0:00:16.9]} 42... Bb3 {[%clk 0:00:01.2]} 43. Nf5
{[%clk 0:00:13]} 1-0

[Event "*** Titled Tuesday Blitz"]
[Site "Chess.com"]
[Date "2020.11.24"]
[Round "4"]
[White "mr_gustavo"]
[Black "AungTZ"]
[Result "0-1"]
[WhiteElo "2390"]
[BlackElo "2131"]
[TimeControl "180+1"]
[EndTime "10:55:56 PST"]
[Termination "AungTZ won by resignation"]

1. e4 {[%clk 0:03:00.9]} 1... c5 {[%clk 0:01:02.4]} 2. Nf3 {[%clk 0:02:58.6]}
2... Nc6 {[%clk 0:01:02.9]} 3. d4 {[%clk 0:02:58.3]} 3... cxd4 {[%clk
0:01:03.6]} 4. Nxd4 {[%clk 0:02:59.2]} 4... Nf6 {[%clk 0:01:03.7]} 5. Nc3 {[%clk
0:02:59.5]} 5... d6 {[%clk 0:01:04.1]} 6. Bg5 {[%clk 0:02:57.9]} 6... e6 {[%clk
0:01:03.9]} 7. Qd2 {[%clk 0:02:57.8]} 7... a6 {[%clk 0:01:04.5]} 8. O-O-O {[%clk
0:02:57.1]} 8... h6 {[%clk 0:01:04.4]} 9. Bh4 {[%clk 0:02:43.1]} 9... Nxe4
{[%clk 0:01:03.1]} 10. Qf4 {[%clk 0:02:22.4]} 10... Ng5 {[%clk 0:01:01.9]} 11.
Nxc6 {[%clk 0:02:19.9]} 11... bxc6 {[%clk 0:01:01.2]} 12. Ne4 {[%clk 0:02:20.4]}
12... e5 {[%clk 0:00:50.1]} 13. Bxg5 {[%clk 0:01:32.5]} 13... hxg5 {[%clk
0:00:38.2]} 14. Qxg5 {[%clk 0:01:31.9]} 14... Qxg5+ {[%clk 0:00:36.6]} 15. Nxg5
{[%clk 0:01:32.8]} 15... Be7 {[%clk 0:00:33.5]} 16. Nf3 {[%clk 0:01:28.3]} 16...
Be6 {[%clk 0:00:31.5]} 17. c4 {[%clk 0:01:26.9]} 17... O-O {[%clk 0:00:29.1]}
18. b3 {[%clk 0:01:27]} 18... a5 {[%clk 0:00:28]} 19. Kb2 {[%clk 0:01:25.9]}
19... a4 {[%clk 0:00:28]} 20. Be2 {[%clk 0:01:25.9]} 20... axb3 {[%clk
0:00:27.8]} 21. axb3 {[%clk 0:01:26.8]} 21... f6 {[%clk 0:00:25.5]} 22. Ra1
{[%clk 0:01:25.2]} 22... d5 {[%clk 0:00:24.8]} 23. Rxa8 {[%clk 0:01:21.9]} 23...
Rxa8 {[%clk 0:00:24]} 24. Ra1 {[%clk 0:01:22.8]} 24... Rxa1 {[%clk 0:00:23.2]}
25. Kxa1 {[%clk 0:01:23.7]} 25... d4 {[%clk 0:00:20.6]} 26. Kb2 {[%clk
0:01:16.1]} 26... c5 {[%clk 0:00:20.1]} 27. Nd2 {[%clk 0:01:14.6]} 27... f5
{[%clk 0:00:18.8]} 28. f3 {[%clk 0:01:15]} 28... Bd7 {[%clk 0:00:18.7]} 29. Bd3
{[%clk 0:01:14.1]} 29... g6 {[%clk 0:00:17.8]} 30. h3 {[%clk 0:01:12.5]} 30...
Bg5 {[%clk 0:00:17.5]} 31. Kc2 {[%clk 0:01:11.4]} 31... Bc6 {[%clk 0:00:17.4]}
32. g4 {[%clk 0:00:46.3]} 32... Bxd2 {[%clk 0:00:17]} 33. Kxd2 {[%clk
0:00:45.6]} 33... e4 {[%clk 0:00:17.6]} 34. fxe4 {[%clk 0:00:31.9]} 34... fxe4
{[%clk 0:00:18.5]} 35. Be2 {[%clk 0:00:31.4]} 35... Kg7 {[%clk 0:00:19.4]} 36.
h4 {[%clk 0:00:28.1]} 36... Kf6 {[%clk 0:00:19.2]} 37. h5 {[%clk 0:00:27.6]}
37... gxh5 {[%clk 0:00:18.9]} 38. gxh5 {[%clk 0:00:28.5]} 38... Kg5 {[%clk
0:00:19.4]} 39. Bd1 {[%clk 0:00:26.6]} 39... Be8 {[%clk 0:00:19.2]} 40. b4
{[%clk 0:00:08.5]} 40... cxb4 {[%clk 0:00:17.2]} 41. c5 {[%clk 0:00:09.4]} 41...
Bb5 {[%clk 0:00:15.6]} 42. Bc2 {[%clk 0:00:03.8]} 42... e3+ {[%clk 0:00:13.1]}
43. Ke1 {[%clk 0:00:04.1]} 43... d3 {[%clk 0:00:13.2]} 44. Bb3 {[%clk
0:00:02.2]} 44... d2+ {[%clk 0:00:11.8]} 45. Kd1 {[%clk 0:00:02.5]} 45... Be8
{[%clk 0:00:11.6]} 46. Bd5 {[%clk 0:00:01.2]} 46... Bxh5+ {[%clk 0:00:11.2]} 47.
Kc2 {[%clk 0:00:01.2]} 47... d1=Q+ {[%clk 0:00:11.1]} 48. Kb2 {[%clk 0:00:02.1]}
0-1

[Event "*** Titled Tuesday Blitz"]
[Site "Chess.com"]
[Date "2020.11.24"]
[Round "4"]
[White "Escanor89"]
[Black "Lestofante90"]
[Result "0-1"]
[WhiteElo "2518"]
[BlackElo "2801"]
[TimeControl "180+1"]
[EndTime "10:55:57 PST"]
[Termination "Lestofante90 won on time"]

1. Nf3 {[%clk 0:03:00.9]} 1... Nf6 {[%clk 0:02:59.5]} 2. c4 {[%clk 0:03:00.6]}
2... g6 {[%clk 0:02:59.9]} 3. Nc3 {[%clk 0:02:59.6]} 3... Bg7 {[%clk 0:02:59.6]}
4. g3 {[%clk 0:02:58.3]} 4... O-O {[%clk 0:02:58.4]} 5. Bg2 {[%clk 0:02:58.5]}
5... d6 {[%clk 0:02:59.2]} 6. d4 {[%clk 0:02:57.3]} 6... Nc6 {[%clk 0:02:59.8]}
7. O-O {[%clk 0:02:57.2]} 7... e5 {[%clk 0:03:00.5]} 8. dxe5 {[%clk 0:02:54]}
8... dxe5 {[%clk 0:03:01.4]} 9. Bg5 {[%clk 0:02:51.2]} 9... Be6 {[%clk
0:03:00.7]} 10. Qa4 {[%clk 0:02:46.5]} 10... Qc8 {[%clk 0:03:00.7]} 11. Rfd1
{[%clk 0:02:39.4]} 11... Nd7 {[%clk 0:02:59.4]} 12. Nd5 {[%clk 0:02:35.1]} 12...
f5 {[%clk 0:02:56.5]} 13. Qxc6 {[%clk 0:02:14.5]} 13... bxc6 {[%clk 0:02:55.3]}
14. Ne7+ {[%clk 0:02:14.6]} 14... Kh8 {[%clk 0:02:01.4]} 15. Nxc8 {[%clk
0:02:15.5]} 15... Rfxc8 {[%clk 0:01:58.4]} 16. Be3 {[%clk 0:02:06.6]} 16... Nf8
{[%clk 0:01:19]} 17. b3 {[%clk 0:01:46]} 17... h6 {[%clk 0:01:17.2]} 18. h4
{[%clk 0:01:31.7]} 18... a5 {[%clk 0:01:15.9]} 19. Rac1 {[%clk 0:01:19.2]} 19...
a4 {[%clk 0:01:15.8]} 20. b4 {[%clk 0:01:19.5]} 20... a3 {[%clk 0:01:14.7]} 21.
Rc3 {[%clk 0:01:03.4]} 21... Rcb8 {[%clk 0:01:13.1]} 22. b5 {[%clk 0:00:33.1]}
22... e4 {[%clk 0:01:12.7]} 23. Nd4 {[%clk 0:00:27.9]} 23... cxb5 {[%clk
0:01:07.3]} 24. cxb5 {[%clk 0:00:26.4]} 24... Bxa2 {[%clk 0:01:07.8]} 25. Ra1
{[%clk 0:00:21.9]} 25... Ne6 {[%clk 0:00:58.8]} 26. Rxa2 {[%clk 0:00:13.7]}
26... Bxd4 {[%clk 0:00:57.1]} 27. Rcxa3 {[%clk 0:00:11.9]} 27... Rxa3 {[%clk
0:00:54.5]} 28. Rxa3 {[%clk 0:00:11.3]} 28... Bxe3 {[%clk 0:00:55]} 29. Rxe3
{[%clk 0:00:08.4]} 29... Rxb5 {[%clk 0:00:54.2]} 30. Rc3 {[%clk 0:00:08.7]}
30... Kg7 {[%clk 0:00:51.6]} 31. Rc6 {[%clk 0:00:07.7]} 31... Rb6 {[%clk
0:00:50.9]} 32. Rc4 {[%clk 0:00:07.5]} 32... Kf6 {[%clk 0:00:50]} 33. f3 {[%clk
0:00:07.9]} 33... Ke5 {[%clk 0:00:36.9]} 34. fxe4 {[%clk 0:00:07.2]} 34... f4
{[%clk 0:00:37.3]} 35. Kf2 {[%clk 0:00:06.7]} 35... fxg3+ {[%clk 0:00:31.6]} 36.
Kxg3 {[%clk 0:00:06.8]} 36... Rb3+ {[%clk 0:00:31]} 37. Kf2 {[%clk 0:00:07]}
37... h5 {[%clk 0:00:26.8]} 38. Bf3 {[%clk 0:00:06.9]} 38... c5 {[%clk
0:00:24.6]} 39. Ra4 {[%clk 0:00:05.2]} 39... Rb4 {[%clk 0:00:23.4]} 40. Ra8
{[%clk 0:00:04.4]} 40... c4 {[%clk 0:00:23.6]} 41. Rg8 {[%clk 0:00:03.6]} 41...
Rb5 {[%clk 0:00:18.3]} 42. Rxg6 {[%clk 0:00:02.7]} 42... c3 {[%clk 0:00:18.6]}
43. Rg1 {[%clk 0:00:01.3]} 43... Nd4 {[%clk 0:00:15.6]} 44. Rc1 {[%clk
0:00:01.5]} 44... Rc5 {[%clk 0:00:13.6]} 45. e3 {[%clk 0:00:02]} 45... Nb3
{[%clk 0:00:13.5]} 46. Rc2 {[%clk 0:00:01.6]} 46... Na1 {[%clk 0:00:12.9]} 47.
Rc1 {[%clk 0:00:01.4]} 47... Nb3 {[%clk 0:00:13.8]} 48. Rc2 {[%clk 0:00:01.2]}
48... Kd6 {[%clk 0:00:14.7]} 0-1